bitfinex-derivatives/quotes_ETHF0:USTF0_20250428
["timestamp","ask_amount","ask_price","bid_price","bid_amount"]
[1745806575439,3.0714,1769.0,1768.9,5.30916]
[1745806576043,3.0714,1769.0,1768.9,46.10916]
[1745806576242,4.2015,1769.0,1768.9,44.979]
[1745806576640,3.0714,1769.0,1768.9,44.979]
[1745806576842,3.0714,1769.0,1768.9,46.10917]
[1745806577644,4.2015,1769.0,1768.9,44.979]
[1745806577842,1.13032,1768.7,1768.6,1.13036]
[1745806578053,1.13036,1768.6,1768.5,4.179]
[1745806578342,1.13027,1768.8,1768.6,1.13034]
[1745806578548,4.11657,1768.8,1768.6,1.13034]
[1745806578744,2.9863,1768.8,1768.5,4.62809539]
[1745806578936,1.6831,1768.7,1768.6,1.6051]
[1745806579136,1.6831,1768.7,1768.6,2.73546]
[1745806579333,2.81339,1768.7,1768.6,40.8]
[1745806580048,1.6831,1768.7,1768.6,41.93036]
[1745806582146,1.6831,1768.7,1768.6,43.64286]
[1745806582846,1.3191,1769.0,1768.9,1.13017]
[1745806583041,2.44923,1769.0,1768.8,8.517]
[1745806583249,2.78507,1768.9,1768.8,7.3868]
[1745806584150,1.6549,1768.9,1768.8,8.51703]
[1745806586443,1.3191,1769.0,1768.9,1.13017]
[1745806586646,1.3191,1769.0,1768.9,2.73307]
[1745806587351,1.2262,1769.1,1769.0,1.1301]
[1745806587651,1.2262,1769.1,1769.0,2.733]
[1745806588152,3.0058,1769.2,1769.1,1.13004]
[1745806588352,3.0058,1769.2,1769.1,2.73294]
[1745806588552,3.2078,1769.3,1769.2,1.12997]
[1745806589254,1.3447,1769.4,1769.3,1.12991]
[1745806589954,1.3447,1769.4,1769.3,41.92991]
[1745806590164,2.9516,1769.4,1769.3,41.92991]
[1745806590459,4.33741,1769.8,1769.6,1.12968]
[1745806590753,2.9037,1769.7,1769.6,1.12968]
[1745806594146,1.12978,1769.5,1769.4,4.172]
[1745806594857,1.12985,1769.4,1769.3,40.8]
[1745806595053,2.82705,1769.4,1769.3,40.8]
[1745806595259,7.82705,1769.4,1769.3,40.8]
[1745806596958,6.6972,1769.4,1768.9,1.5948]
[1745806597155,3.2078,1769.1,1768.3,70.93267284]
[1745806597363,1.13033,1768.7,1768.5,4.172]
[1745806597669,3.0146,1768.6,1768.5,4.172]
[1745806598160,3.0146,1768.6,1768.5,40.8]
[1745806598161,7.35276,1768.6,1768.5,40.8]
[1745806600766,3.0146,1768.6,1768.5,41.93042]
[1745806601061,3.2078,1768.8,1768.7,1.13029]
[1745806601856,1.6997,1768.9,1768.8,1.13023]
[1745806602057,1.6997,1768.9,1768.8,5.30223]
[1745806602661,3.2078,1769.1,1768.8,4.172]
[1745806602859,4.9337,1769.1,1768.9,2.84941]
[1745806603163,4.9337,1769.1,1769.0,1.1301]
[1745806603658,4.9337,1769.1,1768.9,2.84942]
[1745806603963,4.9337,1769.1,1768.9,1.7193]
[1745806604763,1.7259,1769.0,1768.9,1.13017]
[1745806606462,1.7259,1769.0,1768.8,5.30218]
[1745806606862,1.7259,1769.0,1768.9,1.13017]
[1745806608560,1.7259,1769.0,1768.8,5.30219]
[1745806608758,2.85605,1769.0,1768.8,5.30219]
[1745806608967,2.85605,1769.0,1768.9,1.13017]
[1745806609464,1.7259,1769.0,1768.8,4.172]
[1745806609668,4.33797,1768.9,1768.8,4.172]
[1745806609867,5.65057,1768.9,1768.8,4.172]
[1745806610364,1.3126,1768.9,1768.8,5.30223]
[1745806610667,2.44277,1768.9,1768.8,4.172]
[1745806610965,4.03327,1768.9,1768.8,4.172]
[1745806615168,2.9031,1768.9,1768.8,5.30223]
[1745806615467,2.42829,1769.2,1769.0,1.1301]
[1745806615670,1.6198,1769.1,1769.0,1.1301]
[1745806615972,2.74988,1769.1,1768.9,2.83384]
[1745806616170,2.74988,1769.1,1768.9,1.13014]
[1745806616372,1.6198,1769.0,1768.9,1.13014]
[1745806621175,2.7499,1769.0,1768.9,1.13014]
[1745806621376,1.6198,1769.0,1768.9,1.13014]
[1745806621875,1.6198,1769.0,1768.4,2.8261]
[1745806621876,9.8276,1769.0,1768.5,44.965]
[1745806622077,1.13036,1768.6,1768.5,44.965]
[1745806622372,1.13033,1768.7,1768.5,46.09542]
[1745806622568,1.13036,1768.6,1768.5,44.965]
[1745806623069,2.71746,1768.6,1768.5,44.965]
[1745806623774,10.92526,1768.6,1768.5,40.8]
[1745806624366,11.0205078,1768.6,1768.5,40.8]
[1745806626272,6.0205078,1768.6,1768.5,40.8]
[1745806626474,5.92526,1768.6,1768.5,40.8]
[1745806633883,4.7949,1768.6,1768.5,41.93042]
[1745806634274,1.741,1768.9,1768.5,49.966]
[1745806634480,2.87119,1768.9,1768.7,1.13028]
[1745806634680,2.87119,1768.9,1768.8,1.6621]
[1745806635985,6.07899,1768.9,1768.8,1.6621]
[1745806636689,4.9488,1768.9,1768.8,1.6621]
[1745806636887,6.07897,1768.9,1768.8,1.6621]
[1745806637279,5.56636,1769.1,1768.9,1.13015]
[1745806637481,5.56636,1769.1,1769.0,1.643]
[1745806637679,4.4363,1769.1,1769.0,1.643]
[1745806637986,4.33774,1769.3,1769.0,6.643]
[1745806638184,1.12997,1769.2,1769.1,1.643]
[1745806638385,1.12997,1769.2,1769.1,5.809]
[1745806638593,2.75407,1769.2,1769.1,5.809]
[1745806638788,1.6241,1769.2,1769.1,5.809]
[1745806638982,1.6241,1769.2,1769.1,6.93904]
[1745806639390,3.2078,1769.3,1769.2,1.12997]
[1745806639691,3.2078,1769.3,1769.2,2.73717]
[1745806639887,4.33771,1769.3,1769.2,1.6072]
[1745806640091,3.2078,1769.3,1769.2,2.73717]
[1745806640486,3.2078,1769.3,1769.2,43.53717]
[1745806640989,3.2078,1769.5,1769.2,47.4072]
[1745806641294,4.8319,1769.7,1769.6,1.12972]
[1745806641488,4.33747,1769.7,1769.5,1.12974]
[1745806641691,4.33746,1769.7,1769.6,1.688]
[1745806642391,1.12978,1769.5,1769.4,4.165]
[1745806642594,4.33758,1769.5,1769.4,4.165]
[1745806642898,1.12991,1769.3,1769.2,40.8]
[1745806643394,1.12991,1769.3,1769.2,42.488]
[1745806643596,2.87291,1769.3,1769.2,42.488]
[1745806645695,6.08071,1769.3,1769.2,42.488]
[1745806646291,6.08071,1769.3,1769.2,40.8]
[1745806650504,2.82513,1769.1,1768.6,1.2707]
[1745806650802,1.13027,1768.8,1768.6,7.0946]
[1745806651097,4.33803,1768.8,1768.6,8.22491]
[1745806651302,4.33803,1768.8,1768.7,1.6659]
[1745806651603,4.33803,1768.8,1768.7,42.4659]
[1745806651800,3.2078,1768.8,1768.7,42.4659]
[1745806652010,4.33803,1768.8,1768.7,42.4659]
[1745806652303,5.96883,1768.8,1768.7,42.4659]
[1745806655593,5.96883,1768.8,1768.7,40.8]
[1745806656909,11.06401984,1768.8,1768.7,40.8]
[1745806658399,6.06401984,1768.8,1768.7,40.8]
[1745806658910,5.96883,1768.8,1768.7,40.8]
[1745806660000,6.06401677,1768.8,1768.7,40.8]
[1745806660201,6.06401772,1768.8,1768.7,40.8]
[1745806660397,1.13061,1768.2,1768.0,4.4204]
[1745806660598,1.13068,1768.1,1768.0,1.5824]
[1745806660808,1.1999,1768.1,1768.0,40.8]
[1745806661008,2.33058,1768.1,1768.0,40.8]
[1745806662412,1.1999,1768.1,1768.0,40.8]
[1745806662617,2.4164,1768.3,1768.1,1.13066]
[1745806662803,1.2858,1768.3,1768.1,1.13066]
[1745806663004,1.6722,1768.4,1768.3,1.13055]
[1745806663204,8.21834,1768.5,1768.2,1.6769]
[1745806663205,4.4981,1768.6,1768.2,5.8359]
[1745806663403,4.4981,1768.6,1768.3,1.13055]
[1745806663404,1.13044,1768.5,1768.3,1.13055]
[1745806663611,1.5797,1768.5,1768.3,2.80745]
[1745806663913,2.71013,1768.5,1768.3,2.80745]
[1745806664117,2.71013,1768.5,1768.4,1.6769]
[1745806664610,1.13049,1768.4,1768.3,3.802]
[1745806664817,2.71019,1768.4,1768.3,3.802]
[1745806665006,5.91799,1768.4,1768.3,3.802]
[1745806665305,1.13055,1768.3,1768.2,4.159]
[1745806665504,1.5797,1768.3,1768.2,5.8359]
[1745806665705,2.44794,1768.5,1768.3,1.1305]
[1745806666914,1.6258,1768.4,1768.3,2.8074]
[1745806667115,2.75629,1768.4,1768.3,1.6769]
[1745806667316,2.75629,1768.4,1768.3,2.80745]
[1745806668214,2.75629,1768.4,1768.3,1.6769]
[1745806668415,2.75629,1768.4,1768.3,2.80745]
[1745806668606,2.75629,1768.4,1768.3,1.6769]
[1745806670207,2.75629,1768.4,1768.3,2.80745]
[1745806671114,1.6258,1768.4,1768.3,2.80745]
[1745806671615,2.75629,1768.4,1768.3,2.80745]
[1745806671812,1.6258,1768.4,1768.3,2.80745]
[1745806672013,2.44797,1768.5,1768.3,2.80745]
[1745806672210,4.14547,1768.5,1768.4,1.6844]
[1745806674518,1.13055,1768.3,1768.2,4.159]
[1745806674723,1.13055,1768.3,1768.2,6.97401]
[1745806675619,2.82802,1768.4,1768.3,1.13055]
[1745806675816,2.82802,1768.4,1768.3,2.84955]
[1745806676518,1.6975,1768.4,1768.3,2.84955]
[1745806676713,2.82799,1768.4,1768.3,2.84955]
[1745806677022,2.82799,1768.4,1768.3,1.719]
[1745806677218,1.13055,1768.3,1768.2,4.159]
[1745806677517,1.13068,1768.1,1768.0,40.8]
[1745806677712,4.33848,1768.1,1768.0,40.8]
[1745806678521,5.57168,1768.1,1768.0,40.8]
[1745806683918,1.6936,1768.2,1768.0,45.8]
[1745806684119,5.888,1768.3,1768.2,1.13061]
[1745806684922,5.888,1768.3,1768.2,2.87261]
[1745806685116,4.0617,1768.5,1768.3,1.13052]
[1745806685322,4.33818,1768.6,1768.3,1.742]
[1745806685520,3.2078,1768.6,1768.5,1.13042]
[1745806686424,3.2078,1768.6,1768.5,2.37592]
[1745806686626,13.14000808,1768.7,1768.6,1.13036]
[1745806686822,13.14000808,1768.7,1768.6,2.87236]
[1745806687325,4.3422,1769.0,1768.6,2.87233]
[1745806687326,1.13024,1768.8,1768.6,2.87233]
[1745806687525,1.13024,1768.8,1768.7,1.7095]
[1745806688122,2.80371,1768.9,1768.7,42.5095]
[1745806689228,1.6735,1768.9,1768.7,43.63979]
[1745806689429,1.6735,1768.9,1768.8,2.83973]
[1745806689624,1.6735,1768.9,1768.8,1.7095]
[1745806689829,2.80367,1768.9,1768.8,1.7095]
[1745806690029,2.80367,1768.9,1768.8,42.5095]
[1745806691632,2.80367,1768.9,1768.8,40.8]
[1745806691927,15.4823555,1768.9,1768.2,4.152]
[1745806692129,1.13055,1768.3,1768.2,4.152]
[1745806692334,1.13055,1768.3,1768.2,44.952]
[1745806692629,1.13055,1768.3,1768.2,40.8]
[1745806692829,4.33835,1768.3,1768.2,40.8]
[1745806693129,5.94905,1768.3,1768.2,40.8]
[1745806693630,10.94905,1768.3,1768.2,40.8]
[1745806693832,11.04449706,1768.3,1768.2,40.8]
[1745806694031,16.93249706,1768.3,1768.2,40.8]
[1745806694830,11.93249706,1768.3,1768.2,40.8]
[1745806695223,11.93249761,1768.3,1768.2,40.8]
[1745806696733,11.83705,1768.3,1768.2,40.8]
[1745806697631,11.93250138,1768.3,1768.2,40.8]
[1745806698325,11.93250056,1768.3,1768.2,40.8]
[1745806699026,11.83705,1768.3,1768.2,40.8]
[1745806699929,5.65066,1769.0,1768.6,1.13034]
[1745806699930,7.0182,1768.9,1768.6,1.13034]
[1745806700139,1.7083,1768.9,1768.7,2.75068]
[1745806700629,1.7083,1768.9,1768.8,1.13023]
[1745806701022,1.7083,1768.9,1768.7,1.6204]
[1745806701529,1.7083,1768.9,1768.7,2.75064]
[1745806702529,3.2078,1769.0,1768.8,1.13019]
[1745806702832,3.2078,1769.0,1768.9,6.90107]
[1745806703134,3.2078,1769.0,1768.9,47.70107]
[1745806703728,3.2078,1769.2,1769.0,1.13007]
[1745806703929,3.2078,1769.2,1769.1,1.6189]
[1745806705133,4.33777,1769.2,1769.1,1.6189]
[1745806705934,3.2078,1769.2,1769.1,1.6189]
[1745806706131,4.33777,1769.2,1769.1,1.6189]
[1745806706835,3.2078,1769.2,1769.1,2.74894]
[1745806707936,3.2078,1769.2,1768.9,46.106]
[1745806708140,2.77407,1769.1,1768.9,47.72105]
[1745806708328,1.644,1769.1,1769.0,1.1301]
[1745806708529,1.644,1769.1,1769.0,2.769]
[1745806709028,4.33779,1769.2,1769.0,2.769]
[1745806710835,4.3378,1769.2,1769.0,2.76895]
[1745806711940,1.1301,1769.0,1768.9,44.952]
[1745806712439,5.09079,1769.1,1768.9,46.08214]
[1745806712631,1.6574,1769.0,1768.9,47.80484]
[1745806712834,1.1299,1769.1,1769.0,1.1301]
[1745806713038,3.2078,1769.2,1769.1,1.13004]
[1745806713239,4.33777,1769.2,1769.1,1.13004]
[1745806713440,3.2078,1769.2,1769.1,1.13004]
[1745806713740,1.6574,1769.4,1769.3,1.12991]
[1745806714042,1.1299,1769.5,1769.3,4.144]
[1745806714240,1.6574,1769.7,1769.4,1.7227]
[1745806714535,1.6574,1769.7,1769.6,1.12972]
[1745806714741,14.81694617,1769.8,1769.7,1.12966]
[1745806714934,14.81694617,1769.8,1769.7,2.70956]
[1745806715131,14.81694617,1769.8,1769.7,43.50956]
[1745806716632,16.40114617,1769.8,1769.7,43.50956]
[1745806717244,1.5842,1769.8,1769.7,43.50956]
[1745806717747,3.2078,1770.0,1769.9,1.12953]
[1745806718239,6.00957,1770.0,1769.8,1.12954]
[1745806718638,4.8801,1770.0,1769.8,1.12954]
[1745806718934,4.8801,1770.0,1769.9,1.12953]
[1745806720841,4.33717,1770.2,1770.0,1.12946]
[1745806721033,6.02097,1770.2,1770.0,2.86346]
[1745806721235,4.8916,1770.2,1770.1,1.1294]
[1745806722733,6.02098,1770.2,1770.0,1.734]
[1745806722935,4.8916,1770.2,1770.1,1.1294]
[1745806723436,5.55283,1770.4,1770.0,1.734]
[1745806723636,1.6838,1770.3,1770.0,1.734]
[1745806723949,1.6838,1770.3,1770.1,1.12935]
[1745806724746,2.81307,1770.3,1770.1,1.12935]
[1745806725445,1.6844,1770.2,1770.1,1.12935]
[1745806726347,2.81376,1770.2,1770.0,2.86343]
[1745806726946,1.6844,1770.1,1770.0,2.86343]
[1745806728444,1.6844,1770.1,1770.0,1.12946]
[1745806728946,4.4236,1770.4,1770.0,1.7494]
[1745806729247,1.1232,1770.6,1770.0,1.7494]
[1745806729248,1.702,1770.5,1770.4,1.12921]
[1745806729549,1.702,1770.5,1770.4,5.27121]
[1745806730050,2.83114,1770.5,1770.4,44.942]
[1745806732550,2.83114,1770.5,1770.4,40.8]
[1745806733759,7.83114,1770.5,1770.4,40.8]
[1745806733958,2.92646271,1770.5,1770.4,40.8]
[1745806734563,7.92646271,1770.5,1770.4,40.8]
[1745806735067,7.92646154,1770.5,1770.4,40.8]
[1745806736570,2.83114,1770.5,1770.4,40.8]
[1745806736973,1.702,1770.5,1770.4,41.92921]
[1745806737269,1.702,1770.5,1770.4,40.8]
[1745806737862,2.83114,1770.5,1770.4,40.8]
[1745806738363,1.702,1770.5,1770.4,41.92921]
[1745806738563,1.702,1770.5,1770.4,43.57311]
[1745806739271,1.702,1770.5,1770.4,48.57311]
[1745806739473,3.2078,1770.6,1770.5,1.12914]
[1745806739663,3.2078,1770.6,1770.5,2.79024]
[1745806740366,7.07135,1770.8,1770.6,1.12905]
[1745806740561,7.07135,1770.8,1770.6,5.26405]
[1745806740870,1.6302,1770.7,1770.6,4.135]
[1745806741073,2.75922,1770.7,1770.6,4.135]
[1745806741569,1.1044,1770.8,1770.7,1.12902]
[1745806741770,3.86355,1770.8,1770.6,6.92514]
[1745806742171,3.86358,1770.8,1770.6,6.92514]
[1745806742673,3.86358,1770.8,1770.7,1.12902]
[1745806742870,3.86358,1770.8,1770.7,2.87002]
[1745806742871,2.7346,1770.8,1770.7,2.87002]
[1745806743373,3.86355,1770.8,1770.7,1.741]
[1745806743675,2.7346,1770.8,1770.7,2.87002]
[1745806743873,9.0958,1771.0,1770.7,1.741]
[1745806744074,4.33665,1771.0,1770.8,2.86992]
[1745806744268,2.85459,1770.9,1770.8,2.86992]
[1745806744868,1.7257,1770.9,1770.8,2.86992]
[1745806745263,3.2078,1771.0,1770.9,1.12889]
[1745806745463,4.33652,1771.2,1771.0,1.12879]
[1745806745674,1.7138,1771.1,1771.0,1.12883]
[1745806745874,2.84258,1771.1,1771.0,0.2823]
[1745806746178,1.7138,1771.1,1771.0,0.2823]
[1745806746377,2.84256,1771.1,1771.0,0.2823]
[1745806746571,2.84256,1771.1,1771.0,1.41113]
[1745806746970,1.7138,1771.1,1771.0,1.41113]
[1745806747174,2.84256,1771.1,1771.0,0.2823]
[1745806747777,4.33654,1771.2,1771.0,1.41113]
[1745806748078,1.7138,1771.1,1771.0,3.14623]
[1745806748277,2.84256,1771.1,1771.0,2.0174]
[1745806748779,2.84256,1771.1,1771.0,0.2823]
[1745806750679,13.73056,1771.1,1771.0,0.2823]
[1745806751081,13.82584677,1771.1,1771.0,0.2823]
[1745806751481,13.82585016,1771.1,1771.0,0.2823]
[1745806751880,1.12895,1770.8,1770.7,4.134]
[1745806752187,4.33675,1770.8,1770.7,4.134]
[1745806752578,1.12914,1770.5,1770.4,44.934]
[1745806752884,4.33692,1770.6,1770.4,46.06321]
[1745806753085,1.5806,1770.5,1770.4,46.06321]
[1745806753274,1.12914,1770.5,1770.4,44.934]
[1745806753475,1.5806,1770.5,1770.4,44.934]
[1745806753679,2.31033,1770.7,1770.5,1.12912]
[1745806753985,1.12909,1770.6,1770.4,44.934]
[1745806754190,2.70969,1770.6,1770.4,46.0632]
[1745806754379,2.70969,1770.6,1770.4,44.934]
[1745806754685,1.12914,1770.5,1770.4,44.934]
[1745806754886,2.72964,1770.5,1770.4,44.934]
[1745806755081,3.2078,1770.6,1770.4,46.06321]
[1745806755385,4.3369,1770.6,1770.4,44.934]
[1745806755786,3.2078,1770.6,1770.4,44.934]
[1745806755979,5.93742,1770.6,1770.4,44.934]
[1745806756176,2.31035,1770.7,1770.5,1.12914]
[1745806756377,3.91085,1770.7,1770.5,1.12914]
[1745806756785,1.12908,1770.6,1770.4,46.06316]
[1745806757081,3.91086,1770.7,1770.5,1.12914]
[1745806757285,1.12909,1770.6,1770.4,46.06316]
[1745806758582,3.91086,1770.7,1770.5,1.12914]
[1745806758979,3.91086,1770.7,1770.4,46.06316]
[1745806758980,1.12908,1770.6,1770.4,46.06316]
[1745806759289,2.87518,1770.6,1770.4,46.06316]
[1745806760383,1.12914,1770.5,1770.4,40.8]
[1745806760580,3.87264,1770.5,1770.4,40.8]
[1745806761089,8.87264,1770.5,1770.4,40.8]
[1745806762686,3.87264,1770.5,1770.4,40.8]
[1745806764189,8.87264,1770.5,1770.4,40.8]
[1745806764389,3.87264,1770.5,1770.4,40.8]
[1745806766394,3.87835313,1770.5,1770.4,40.8]
[1745806772198,7.08615313,1770.5,1770.4,40.8]
[1745806776700,2.82338,1770.2,1769.7,0.45313141]
[1745806776902,2.82338,1770.2,1769.6,5.25769]
[1745806776903,3.2078,1769.9,1769.8,1.12959]
[1745806777097,3.2078,1769.9,1769.8,41.92959]
[1745806777401,3.2078,1769.9,1769.8,46.92959]
[1745806777597,9.0958,1770.2,1770.1,1.1294]
[1745806777804,9.0958,1770.2,1770.0,1.12946]
[1745806777805,4.33714,1770.2,1770.0,1.12946]
[1745806777997,4.33714,1770.2,1770.1,1.6785]
[1745806778198,5.99424,1770.2,1770.1,1.6785]
[1745806778391,8.71662313,1770.5,1770.1,9.8863]
[1745806778392,0.00571313,1770.5,1770.1,9.8863]
[1745806778597,0.00571313,1770.5,1770.4,1.12921]
[1745806779399,0.00571313,1770.5,1770.4,2.77951]
[1745806780403,0.00571313,1770.5,1770.4,7.77951]
[1745806780999,13.1589985,1770.8,1770.7,1.12902]
[1745806781200,13.1589985,1770.8,1770.7,5.25702]
[1745806781701,1.12889,1770.9,1770.7,46.05702]
[1745806781996,1.12889,1770.9,1770.8,1.6645]
[1745806782402,1.12895,1770.8,1770.7,44.928]
[1745806782603,4.33675,1770.8,1770.7,44.928]
[1745806784609,4.33675,1770.8,1770.7,40.8]
[1745806785206,6.08105,1770.8,1770.7,40.8]
[1745806786205,4.9521,1770.8,1770.7,40.8]
[1745806786401,6.08105,1770.8,1770.7,40.8]
[1745806788510,3.2078,1770.8,1770.7,43.60642]
[1745806788805,3.2078,1770.8,1770.7,42.4774]
[1745806789013,4.33675,1770.8,1770.7,42.4774]
[1745806789206,3.2078,1770.8,1770.7,42.4774]
[1745806790009,6.00435,1770.8,1770.7,42.4774]
[1745806791802,2.79655,1770.8,1770.7,42.4774]
[1745806792808,1.6676,1770.8,1770.7,43.60642]
[1745806794109,10.22456,1771.1,1770.7,51.6044]
[1745806794410,10.22456,1771.1,1770.8,3.84892]
[1745806794411,1.12883,1771.0,1770.8,3.84892]
[1745806794610,2.86733,1771.0,1770.9,1.5913]
[1745806795105,1.7385,1771.0,1770.9,2.72019]
[1745806795308,3.2078,1771.1,1770.9,1.5913]
[1745806795502,1.12883,1771.0,1770.9,1.5913]
[1745806795806,2.86733,1771.0,1770.9,1.5913]
[1745806796813,1.7385,1771.0,1770.9,1.5913]
[1745806797211,1.7385,1771.0,1770.9,2.72019]
[1745806798004,1.7385,1771.0,1770.9,1.5913]
[1745806798413,1.7385,1771.0,1770.9,2.72019]
[1745806798713,4.33661,1771.1,1770.9,2.72019]
[1745806799213,5.92241,1771.1,1771.0,1.6373]
[1745806799409,4.7936,1771.1,1771.0,1.6373]
[1745806799612,4.7936,1771.1,1771.0,2.76613]
[1745806800110,1.5858,1771.1,1771.0,2.76613]
[1745806800610,11.40144,1771.3,1771.1,1.12873]
[1745806800811,5.51344,1771.3,1771.1,2.78383]
[1745806801314,5.51344,1771.3,1771.2,1.6551]
[1745806802012,1.6385,1771.4,1771.2,1.6551]
[1745806802206,1.6385,1771.4,1771.3,5.25463]
[1745806802411,5.49122,1771.5,1771.3,5.25461]
[1745806802612,4.3627,1771.5,1771.4,1.12857]
[1745806802914,4.3627,1771.5,1771.4,1.6551]
[1745806803110,6.062,1771.5,1771.4,1.6551]
[1745806803412,6.9861,1771.7,1771.6,1.12844]
[1745806803615,1.0981,1771.7,1771.6,1.12844]
[1745806803913,1.6993,1771.8,1771.7,1.12838]
[1745806804112,1.6993,1771.8,1771.7,1.6469]
[1745806804413,19.15914617,1771.9,1771.8,1.12832]
[1745806804613,21.98669617,1771.9,1771.7,2.77524]
[1745806804801,21.98672617,1771.9,1771.7,2.77526]
[1745806805005,1.12838,1771.7,1771.6,44.919]
[1745806805213,4.33618,1771.7,1771.6,44.919]
[1745806807703,4.33618,1771.7,1771.6,40.8]
[1745806809204,10.22418,1771.7,1771.6,40.8]
[1745806809910,10.22418,1771.7,1771.4,4.119]
[1745806809911,1.12851,1771.5,1771.4,4.119]
[1745806810104,3.2078,1771.5,1771.1,4.33654]
[1745806810314,1.12866,1771.3,1771.1,7.3268]
[1745806810512,1.6871,1771.2,1771.1,7.3268]
[1745806810709,2.8196,1771.2,1771.1,7.3268]
[1745806811008,3.9483,1771.2,1771.1,48.1268]
[1745806811805,3.9483,1771.2,1771.1,44.919]
[1745806814710,3.9483,1771.2,1771.1,40.8]
[1745806823515,3.9483,1771.2,1770.1,66.8254422]
[1745806823516,13.7076,1771.2,1769.7,0.09829856]
[1745806823819,1.12966,1769.7,1769.6,1.5955]
[1745806824019,1.12963,1769.8,1769.6,42.3955]
[1745806824210,1.12963,1769.8,1769.7,1.6953]
[1745806824516,3.2078,1770.1,1769.7,6.94394]
[1745806824721,4.33723,1770.1,1769.8,4.119]
[1745806824910,5.02907,1770.2,1769.9,6.0699]
[1745806825225,5.02907,1770.2,1770.0,1.6953]
[1745806825425,1.12937,1770.2,1770.0,1.6953]
[1745806825617,1.1294,1770.1,1770.0,1.6953]
[1745806826018,1.1294,1770.1,1770.0,6.6953]
[1745806827925,2.74888,1770.2,1770.0,6.6953]
[1745806828221,2.74888,1770.2,1770.1,1.697]
[1745806829825,1.1294,1770.1,1770.0,4.12]
[1745806830031,5.9473,1770.1,1770.0,4.12]
[1745806830618,5.9473,1770.1,1770.0,5.7386]
[1745806832318,5.9473,1770.1,1770.0,4.12]
[1745806835324,1.12953,1769.9,1769.8,1.6303]
[1745806835519,4.33733,1769.9,1769.8,1.6303]
[1745806836221,3.2078,1769.9,1769.8,1.6303]
[1745806836418,3.2078,1770.1,1769.8,6.6303]
[1745806836716,3.2078,1770.1,1770.0,1.12946]
[1745806836918,3.2078,1770.1,1770.0,5.24346]
[1745806837118,3.2078,1770.1,1770.0,10.24346]
[1745806837523,1.12938,1770.2,1770.0,9.114]
[1745806837723,1.12938,1770.2,1770.1,2.6837]
[1745806838924,4.33696,1770.5,1770.3,1.12922]
[1745806839126,4.9338,1770.8,1770.4,5.7085]
[1745806839328,4.33679,1770.8,1770.6,1.12907]
[1745806839530,4.33675,1770.8,1770.7,46.5537]
[1745806840524,4.33675,1770.8,1770.7,44.914]
[1745806844834,3.2078,1770.8,1770.7,44.914]
[1745806845334,3.2078,1770.8,1770.7,46.04302]
[1745806845833,3.2078,1770.8,1770.7,44.914]
[1745806846431,3.2078,1770.8,1770.7,46.6344]
[1745806847032,4.33675,1770.8,1770.7,46.6344]
[1745806852137,4.33675,1770.8,1770.7,44.914]
[1745806855629,4.33675,1770.8,1770.7,46.04302]
[1745806855926,3.2078,1770.8,1770.7,46.04302]
[1745806857521,3.2078,1770.8,1770.7,47.64212]
[1745806858345,4.33675,1770.8,1770.7,40.8]
[1745806858545,6.00685,1770.8,1770.7,40.8]
[1745806859144,1.12908,1770.6,1770.5,5.8365]
[1745806859339,1.12908,1770.6,1770.5,4.113]
[1745806859533,4.33688,1770.6,1770.5,4.113]
[1745806859738,5.47778,1770.6,1770.5,40.8]
[1745806860035,7.14788,1770.6,1770.5,40.8]
[1745806861149,12.14788,1770.6,1770.5,40.8]
[1745806861744,12.24319475,1770.6,1770.5,40.8]
[1745806861945,12.14788,1770.6,1770.5,40.8]
[1745806862651,7.14788,1770.6,1770.5,40.8]
[1745806863051,3.2078,1770.6,1770.5,46.04214]
[1745806863452,3.2078,1770.6,1770.5,44.913]
[1745806863655,3.2078,1770.6,1770.5,46.04214]
[1745806864458,4.9477,1770.6,1770.5,46.04214]
[1745806865144,1.7399,1770.6,1770.5,46.04214]
[1745806865655,1.12902,1770.7,1770.5,46.04214]
[1745806865959,5.4664,1770.8,1770.6,1.12908]
[1745806866156,1.12902,1770.7,1770.6,2.85418]
[1745806866360,2.86892,1770.7,1770.6,2.85418]
[1745806866859,1.7399,1770.7,1770.6,2.85418]
[1745806868045,2.86892,1770.7,1770.6,2.85418]
[1745806868350,2.86892,1770.7,1770.6,1.7251]
[1745806868854,2.86892,1770.7,1770.6,2.85418]
[1745806869054,1.12908,1770.6,1770.5,44.913]
[1745806869356,3.83438,1770.6,1770.5,44.913]
[1745806870250,7.04218,1770.6,1770.5,44.913]
[1745806871148,2.7053,1770.6,1770.5,46.04214]
[1745806871351,7.04218,1770.6,1770.5,44.913]
[1745806872854,5.9131,1770.6,1770.5,46.04214]
[1745806874056,7.04218,1770.6,1770.5,44.913]
[1745806879370,12.04218,1770.6,1770.5,40.8]
[1745806883465,7.04218,1770.6,1770.5,40.8]
[1745806886668,5.92098,1770.6,1770.5,40.8]
[1745806886866,5.92098,1770.6,1770.5,42.5471]
[1745806887469,5.92098,1770.6,1770.5,40.8]
[1745806891674,5.92098,1770.6,1770.5,42.4063]